fUSD/lending_fUSD_20240602
["ID","MTS","AMOUNT","RATE_DAILY","PERIOD"]
[328418714,1717371069211,-1147.72,0.0003159,4]
[328418715,1717371069220,-523.0,0.0003159,4]
[328418716,1717371069229,-500.0,0.0003159,4]
[328418717,1717371069239,-500.0,0.0003159,4]
[328418718,1717371069248,-715.6,0.0003159,4]
[328418719,1717371069258,-653.66,0.0003159,4]
[328418720,1717371069267,-871.38,0.0003159,4]
[328418721,1717371069277,-554.83,0.0003159,4]
[328418722,1717371069286,-684.32,0.0003159,4]
[328418723,1717371069296,-500.0,0.0003159,4]
[328418724,1717371069305,-654.04,0.0003159,4]
[328418725,1717371069315,-500.0,0.0003159,4]
[328418726,1717371069324,-697.57,0.0003159,4]
[328418727,1717371069333,-500.0,0.0003159,4]
[328418728,1717371069344,-500.0,0.0003159,4]
[328418729,1717371069353,-500.0,0.0003159,4]
[328418730,1717371069363,-789.05,0.0003159,4]
[328418731,1717371069372,-760.07,0.0003159,4]
[328418732,1717371069381,-500.0,0.0003159,4]
[328418733,1717371069390,-1212.31,0.0003159,4]
[328418734,1717371069400,-772.24,0.0003159,4]
[328418735,1717371069409,-500.0,0.0003159,4]
[328418736,1717371069419,-903.33,0.0003159,4]
[328418737,1717371069428,-1037.02,0.0003159,4]
[328418738,1717371069437,-904.38,0.0003159,4]
[328418739,1717371069446,-150.0,0.00031593,7]
[328418740,1717371069455,-150.0,0.00031599,7]
[328418741,1717371069465,-5300.0,0.000316,11]
[328418742,1717371069474,-1871.52668862,0.00031603,2]
[328418743,1717371069483,-299.27296462,0.00031603,2]
[328418744,1717371069492,-500.0,0.00031606,4]
[328418745,1717371069501,-500.0,0.00031606,4]
[328418746,1717371069510,-1001.15,0.00031606,4]
[328418747,1717371069519,-531.24,0.00031606,4]
[328418748,1717371069528,-500.0,0.00031606,4]
[328418749,1717371069538,-2925.21,0.00031606,4]
[328418750,1717371069547,-1385.52,0.00031606,4]
[328418751,1717371069556,-5956.43,0.00031606,4]
[328418752,1717371069565,-13746.73,0.00031606,4]
[328418753,1717371069574,-692.01,0.00031606,4]
[328418754,1717371069583,-2419.36,0.00031606,4]
[328418755,1717371069592,-12780.6,0.00031606,4]
[328418756,1717371069601,-737.12,0.00031606,4]
[328418757,1717371069610,-500.0,0.00031606,4]
[328418758,1717371069622,-500.0,0.00031606,4]
[328418759,1717371069632,-500.0,0.00031607,4]
[328418760,1717371069641,-500.0,0.00031607,4]
[328418761,1717371069651,-500.0,0.00031607,4]
[328418762,1717371069660,-500.0,0.00031607,4]
[328418763,1717371069671,-501.5707417,0.00031607,4]
[328418764,1717371069680,-520.25916032,0.00031607,4]
[328418765,1717371069690,-501.35270242,0.00031607,4]
[328418766,1717371069700,-521.38936228,0.00031607,4]
[328418767,1717371069709,-509.22647179,0.00031607,4]
[328418768,1717371069719,-500.0,0.00031607,4]
[328418769,1717371069729,-500.0,0.00031607,4]
[328418770,1717371069738,-503.5815367,0.00031607,4]
[328418771,1717371069748,-500.0,0.00031607,4]
[328418772,1717371069757,-530.86186744,0.00031607,4]
[328418773,1717371069767,-500.0,0.00031607,4]
[328418774,1717371069776,-247.97156815,0.00031607,4]
[328418775,1717371069785,-532.24719907,0.00031607,4]
[328418776,1717371069794,-339.43487857,0.00031607,4]
[328418777,1717371069804,-500.0,0.00031607,4]
[328418778,1717371069814,-536.76106936,0.00031607,4]
[328418779,1717371069823,-500.0,0.00031607,4]
[328418780,1717371069832,-500.0,0.00031607,4]
[328418781,1717371069841,-500.0,0.00031607,4]
[328418782,1717371069850,-500.0,0.00031607,4]
[328418783,1717371069859,-500.0,0.00031607,4]
[328418784,1717371069869,-152.3981255,0.00031607,4]
[328418785,1717371069878,-518.95236243,0.00031607,4]
[328418786,1717371069887,-500.0,0.00031607,4]
[328418787,1717371069898,-320.7364055,0.00031607,4]
[328418788,1717371069907,-500.0,0.00031607,4]
[328418789,1717371069916,-500.0,0.00031607,4]
[328418790,1717371069925,-528.11633966,0.00031607,4]
[328418791,1717371069934,-500.0,0.00031607,4]
[328418792,1717371069943,-500.0,0.00031607,4]
[328418793,1717371069952,-501.58948266,0.00031607,4]
[328418794,1717371069962,-500.0,0.00031607,4]
[328418795,1717371069971,-500.0,0.00031607,4]
[328418796,1717371069979,-500.0,0.00031607,4]
[328418797,1717371069989,-500.0,0.00031607,4]
[328418798,1717371069999,-500.0,0.00031607,4]
[328418799,1717371070007,-500.0,0.00031607,4]
[328418800,1717371070017,-262.80751113,0.00031607,4]
[328418801,1717371070026,-500.0,0.00031607,4]
[328418802,1717371070035,-500.0,0.00031607,4]
[328418803,1717371070044,-500.0,0.00031607,4]
[328418804,1717371070053,-500.0,0.00031607,4]
[328418805,1717371070062,-976.87,0.00031607,4]
[328418806,1717371070071,-500.0,0.00031607,4]
[328418807,1717371070080,-985.6,0.00031607,4]
[328418808,1717371070090,-500.0,0.00031607,4]
[328418809,1717371070099,-500.0,0.00031607,4]
[328418810,1717371070108,-500.0,0.00031607,4]
[328418811,1717371070117,-573.23,0.00031607,4]
[328418812,1717371070126,-250.0,0.00031607,4]
[328418813,1717371070135,-500.0,0.00031607,4]
[328418814,1717371070144,-515.53918857,0.00031607,4]
[328418815,1717371070154,-500.0,0.00031607,4]
[328418816,1717371070162,-500.0,0.00031607,2]
[328418817,1717371070172,-516.16,0.00031607,4]
[328418818,1717371070181,-500.0,0.00031607,4]
[328418819,1717371070190,-500.0,0.00031607,4]
[328418820,1717371070198,-501.76,0.00031607,4]
[328418821,1717371070207,-500.0,0.00031607,4]
[328418822,1717371070216,-1005.8235813,0.00031607,2]
[328418823,1717371070225,-500.0,0.00031607,4]
[328418824,1717371070234,-500.0,0.00031607,4]
[328418825,1717371070243,-585.1,0.00031607,4]
[328418826,1717371070251,-527.36547787,0.00031607,4]
[328418827,1717371070260,-500.0,0.00031607,4]
[328418828,1717371070270,-508.20601257,0.00031607,4]
[328418829,1717371070279,-500.0,0.00031607,4]
[328418830,1717371070288,-500.0,0.00031607,4]
[328418831,1717371070297,-500.0,0.00031607,4]
[328418832,1717371070307,-557.74765442,0.00031607,4]
[328418833,1717371070316,-509.00813847,0.00031607,4]
[328418834,1717371070325,-579.16030005,0.00031607,4]
[328418835,1717371070335,-500.0,0.00031607,4]
[328418836,1717371070344,-500.0,0.00031607,4]
[328418837,1717371070354,-500.0,0.00031607,4]
[328418838,1717371070363,-562.59015937,0.00031607,4]
[328418839,1717371070372,-500.0,0.00031607,4]
[328418840,1717371070382,-500.0,0.00031607,4]
[328418841,1717371070391,-511.19961047,0.00031607,4]
[328418842,1717371070402,-500.0,0.00031607,4]
[328418843,1717371070411,-500.0,0.00031607,4]
[328418844,1717371070421,-512.76623143,0.00031607,4]
[328418845,1717371070430,-500.0,0.00031607,4]
[328418846,1717371070439,-500.0,0.00031607,4]
[328418847,1717371070448,-500.0,0.00031607,4]
[328418848,1717371070458,-500.0,0.00031607,4]
[328418849,1717371070467,-500.0,0.00031607,4]
[328418850,1717371070476,-508.00637659,0.00031607,4]
[328418851,1717371070486,-500.0,0.00031607,4]
[328418852,1717371070495,-500.0,0.00031607,4]
[328418853,1717371070504,-528.96665333,0.00031607,4]
[328418854,1717371070513,-500.0,0.00031607,4]
[328418855,1717371070523,-500.0,0.00031607,4]
[328418856,1717371070533,-512.2315809,0.00031607,4]
[328418857,1717371070542,-566.83956627,0.00031607,4]
[328418858,1717371070552,-500.0,0.00031607,4]
[328418859,1717371070561,-500.0,0.00031607,4]
[328418860,1717371070571,-565.05,0.00031607,4]
[328418861,1717371070580,-500.0,0.00031607,4]
[328418862,1717371070590,-1084.19,0.00031607,4]
[328418863,1717371070600,-528.86041298,0.00031607,4]
[328418864,1717371070609,-500.0,0.00031607,4]
[328418865,1717371070620,-240.44043852,0.00031607,4]
[328418866,1717371070631,-507.14892957,0.00031607,4]
[328418867,1717371070640,-189.41123745,0.00031607,4]
[328418868,1717371070650,-500.0,0.00031607,4]
[328418869,1717371070660,-504.0614284,0.00031607,2]
[328418870,1717371070670,-500.0,0.00031607,4]
[328418871,1717371070679,-500.0,0.00031607,4]
[328418872,1717371070688,-626.61126046,0.00031607,4]
[328418873,1717371070699,-500.0,0.00031607,4]
[328418874,1717371070709,-559.85,0.00031607,4]
[328418875,1717371070719,-686.33,0.00031607,4]
[328418876,1717371070728,-500.0,0.00031607,4]
[328418877,1717371070738,-500.0,0.00031607,4]
[328418878,1717371070747,-500.0,0.00031607,4]
[328418879,1717371070757,-500.0,0.00031607,4]
[328418880,1717371070767,-500.0,0.00031607,4]
[328418881,1717371070777,-500.0,0.00031607,4]
[328418882,1717371070786,-500.0,0.00031607,4]
[328418883,1717371070796,-500.0,0.00031607,4]
[328418884,1717371070806,-517.78089055,0.00031607,4]
[328418885,1717371070815,-594.62,0.00031607,4]
[328418886,1717371070825,-532.73522758,0.00031607,4]
[328418887,1717371070834,-500.0,0.00031607,4]
[328418888,1717371070843,-500.0,0.00031607,4]
[328418889,1717371070853,-500.0,0.00031607,4]
[328418890,1717371070863,-500.0,0.00031607,4]
[328418891,1717371070872,-500.0,0.00031607,4]
[328418892,1717371070881,-500.0,0.00031607,4]
[328418893,1717371070890,-646.62390875,0.00031607,4]
[328418894,1717371070900,-291.56941934,0.00031607,4]
[328418895,1717371070909,-500.0,0.00031607,4]
[328418896,1717371070919,-500.0,0.00031607,4]
[328418897,1717371070929,-726.33,0.00031607,4]
[328418898,1717371070938,-500.0,0.00031607,4]
[328418899,1717371070947,-500.0,0.00031607,4]
[328418900,1717371070956,-673.43,0.00031607,4]
[328418901,1717371070966,-500.0,0.00031607,4]
[328418902,1717371070975,-500.0,0.00031607,4]
[328418903,1717371070984,-500.0,0.00031607,4]
[328418904,1717371070994,-500.0,0.00031607,4]
[328418905,1717371071003,-500.0,0.00031607,4]
[328418906,1717371071012,-500.0,0.00031607,4]
[328418907,1717371071021,-634.16,0.00031607,4]
[328418908,1717371071031,-507.59287982,0.00031607,4]
[328418909,1717371071040,-500.0,0.00031607,4]
[328418910,1717371071050,-610.74,0.00031607,4]
[328418911,1717371071059,-606.91560512,0.00031607,2]
[328418912,1717371071069,-500.0,0.00031607,4]
[328418913,1717371071078,-501.44121147,0.00031607,4]
[328418914,1717371071087,-500.0,0.00031607,4]
[328418915,1717371071097,-500.0,0.00031607,4]
[328418916,1717371071107,-715.05,0.00031607,4]
[328418917,1717371071116,-500.0,0.00031607,4]
[328418918,1717371071125,-500.0,0.00031607,4]
[328418919,1717371071135,-512.96183319,0.00031607,4]
[328418920,1717371071144,-500.0,0.00031607,4]
[328418921,1717371071154,-500.0,0.00031607,4]
[328418922,1717371071164,-2000.0,0.00031607,2]
[328418923,1717371071173,-648.14,0.00031607,4]
[328418924,1717371071183,-450.01764169,0.00031607,4]
[328418925,1717371071193,-500.0,0.00031607,4]
[328418926,1717371071203,-678.37,0.00031607,4]
[328418927,1717371071212,-500.0,0.00031607,4]
[328418928,1717371071221,-500.0,0.00031607,4]
[328418929,1717371071230,-500.0,0.00031607,4]
[328418930,1717371071240,-580.49,0.00031607,4]
[328418931,1717371071249,-500.0,0.00031607,4]
[328418932,1717371071258,-616.98,0.00031607,4]
[328418933,1717371071267,-500.0,0.00031607,4]
[328418934,1717371071276,-476.12,0.00031607,4]
[328418935,1717371071286,-562.17,0.00031607,4]
[328418936,1717371071295,-500.0,0.00031607,4]
[328418937,1717371071304,-641.58,0.00031607,4]
[328418938,1717371071314,-500.0,0.00031607,4]
[328418939,1717371071323,-529.30508531,0.00031607,4]
[328418940,1717371071332,-500.0,0.00031607,4]
[328418941,1717371071341,-804.64,0.00031607,2]
[328418942,1717371071351,-931.07,0.00031607,4]
[328418943,1717371071360,-500.0,0.00031607,4]
[328418944,1717371071369,-800.9,0.00031607,4]
[328418945,1717371071378,-1483.14,0.00031607,4]
[328418946,1717371071388,-966.28,0.00031607,4]
[328418947,1717371071399,-515.40220053,0.00031607,4]
[328418948,1717371071408,-382.07498262,0.00031607,4]
[328418949,1717371071417,-500.0,0.00031607,4]
[328418950,1717371071426,-500.0,0.00031607,4]
[328418951,1717371071435,-500.0,0.00031607,4]
[328418952,1717371071589,-500.0,0.00031607,4]
[328418953,1717371071598,-500.0,0.00031607,4]
[328418954,1717371071607,-515.6594634,0.00031607,4]
[328418955,1717371071616,-500.0,0.00031607,4]
[328418956,1717371071625,-500.0,0.00031607,4]
[328418957,1717371071635,-500.0,0.00031607,4]
[328418958,1717371071650,-500.0,0.00031607,4]
[328418959,1717371071659,-1014.25,0.00031607,4]
[328418960,1717371071668,-500.0,0.00031607,4]
[328418961,1717371071680,-500.0,0.00031607,4]
[328418962,1717371071689,-500.0,0.00031607,4]
[328418963,1717371071698,-1282.94,0.00031607,4]
[328418964,1717371071707,-154.77042306,0.00031607,4]
[328418965,1717371071716,-500.0,0.00031607,2]
[328418966,1717371071726,-500.0,0.00031607,4]
[328418967,1717371071736,-500.0,0.00031607,4]
[328418968,1717371071745,-816.22,0.00031607,4]
[328418969,1717371071755,-1358.74,0.00031607,4]
[328418970,1717371071764,-500.0,0.00031607,4]
[328418971,1717371071773,-673.28,0.00031607,4]
[328418972,1717371071782,-500.0,0.00031607,4]
[328418973,1717371071791,-500.0,0.00031607,4]
[328418974,1717371071800,-704.95,0.00031607,4]
[328418975,1717371071809,-500.0,0.00031607,4]
[328418976,1717371071819,-179.31827537,0.00031607,4]
[328418977,1717371071828,-500.0,0.00031607,4]
[328418978,1717371071837,-500.0,0.00031607,4]
[328418979,1717371071846,-500.0,0.00031607,4]
[328418980,1717371071855,-2030.46,0.00031607,4]
[328418981,1717371071865,-500.0,0.00031607,4]
[328418982,1717371071874,-500.0,0.00031607,4]
[328418983,1717371071883,-500.0,0.00031607,4]
[328418984,1717371071893,-500.0,0.00031607,4]
[328418985,1717371071903,-500.0,0.00031607,4]
[328418986,1717371071913,-500.0,0.00031607,4]
[328418987,1717371071923,-500.0,0.00031607,4]
[328418988,1717371071932,-500.0,0.00031607,4]
[328418989,1717371071942,-500.0,0.00031607,4]
[328418990,1717371071951,-518.04,0.00031607,4]
[328418991,1717371071961,-500.0,0.00031607,4]
[328418992,1717371071971,-500.0,0.00031607,4]
[328418993,1717371071980,-534.36341657,0.00031607,4]
[328418994,1717371071990,-500.0,0.00031607,4]
[328418995,1717371072000,-504.61642434,0.00031607,4]
[328418996,1717371072010,-500.0,0.00031607,4]
[328418997,1717371072019,-500.0,0.00031607,4]
[328418998,1717371072028,-500.0,0.00031607,4]
[328418999,1717371072038,-500.0,0.00031607,4]
[328419000,1717371072047,-500.0,0.00031607,4]
[328419001,1717371072056,-500.0,0.00031607,4]
[328419002,1717371072066,-500.0,0.00031607,4]
[328419003,1717371072075,-500.0,0.00031607,4]
[328419004,1717371072085,-500.0,0.00031607,4]
[328419005,1717371072094,-500.0,0.00031607,4]
[328419006,1717371072103,-673.88,0.00031607,4]
[328419007,1717371072113,-500.0,0.00031607,4]
[328419008,1717371072122,-500.0,0.00031607,4]
[328419009,1717371072131,-1046.32,0.00031607,4]
[328419010,1717371072141,-500.0,0.00031607,4]
[328419011,1717371072151,-500.0,0.00031607,4]
[328419012,1717371072160,-500.0,0.00031607,4]
[328419013,1717371072170,-500.0,0.00031607,4]
[328419014,1717371072179,-1211.44,0.00031607,4]
[328419015,1717371072188,-500.0,0.00031607,4]
[328419016,1717371072200,-915.71,0.00031607,4]
[328419017,1717371072211,-672.72,0.00031607,4]
[328419018,1717371072222,-504.96,0.00031607,4]
[328419019,1717371072232,-1228.24,0.00031607,4]
[328419020,1717371072243,-2678.02,0.00031607,4]
[328419021,1717371072251,-515.87,0.00031607,4]
[328419022,1717371072263,-622.96,0.00031607,4]
[328419023,1717371072272,-893.79,0.00031607,4]
[328419024,1717371072282,-638.82,0.00031607,4]
[328419025,1717371072291,-1208.18,0.00031607,4]
[328419026,1717371072301,-500.0,0.00031607,4]
[328419027,1717371072310,-523.2,0.00031607,4]
[328419028,1717371072319,-1277.74,0.00031607,4]
[328419029,1717371072330,-150.0,0.00031613,7]
[328419030,1717371072339,-3753.36893321,0.00031623,3]
[328419031,1717371072349,-150.0,0.00031636,2]
[328419032,1717371072359,-500.0,0.00031641,4]
[328419033,1717371072368,-500.0,0.00031641,4]
[328419034,1717371072379,-150.0,0.00031648,7]
[328419035,1717371072390,-500.0,0.00031677,4]
[328419036,1717371072401,-500.0,0.00031677,4]
[328419037,1717371072410,-500.0,0.00031677,4]
[328419038,1717371072420,-500.0,0.00031677,4]
[328419039,1717371072429,-295.45616089,0.00031677,4]
[328419040,1717371072438,-694.92,0.00031677,4]
[328419041,1717371072448,-500.0,0.00031677,4]
[328419042,1717371072457,-500.0,0.00031677,4]
[328419043,1717371072467,-500.0,0.00031677,4]
[328419044,1717371072476,-798.44,0.00031677,4]
[328419045,1717371072486,-500.0,0.00031677,4]
[328419046,1717371072496,-500.0,0.00031677,4]
[328419047,1717371072506,-1024.48,0.00031677,4]
[328419048,1717371072517,-797.99,0.00031677,4]
[328419049,1717371072526,-763.86,0.00031677,4]
[328419050,1717371072536,-638.9,0.00031677,4]
[328419051,1717371072545,-1096.67,0.00031677,4]
[328419052,1717371072554,-1679.78,0.00031677,4]
[328419053,1717371072564,-500.0,0.00031677,4]
[328419054,1717371072573,-510.2347868,0.00031677,4]
[328419055,1717371072582,-500.0,0.00031677,4]
[328419056,1717371072592,-500.0,0.00031677,4]
[328419057,1717371072601,-606.79,0.00031677,4]
[328419058,1717371072610,-537.93,0.00031677,4]
[328419059,1717371072620,-777.28,0.00031678,4]
[328419060,1717371072629,-500.0,0.00031678,4]
[328419061,1717371072639,-500.0,0.00031678,4]
[328419062,1717371072652,-4734.28,0.00031678,4]
[328419063,1717371072662,-500.0,0.00031678,4]
[328419064,1717371072671,-500.0,0.00031678,4]
[328419065,1717371072681,-936.92,0.00031678,4]
[328419066,1717371072690,-5685.91,0.00031678,4]
[328419067,1717371072701,-756.95,0.00031678,4]
[328419068,1717371072710,-971.06,0.00031678,4]
[328419069,1717371072720,-599.95,0.00031678,4]
[328419070,1717371072729,-500.0,0.00031678,4]
[328419071,1717371072739,-1028.0,0.00031678,4]
[328419072,1717371072749,-572.72,0.00031678,4]
[328419073,1717371072759,-1195.81,0.00031678,4]
[328419074,1717371072769,-641.03,0.00031678,4]
[328419075,1717371072778,-500.0,0.00031678,4]
[328419076,1717371072789,-1051.95,0.00031678,4]
[328419077,1717371072799,-598.95,0.00031678,4]
[328419078,1717371072808,-965.74,0.00031678,4]
[328419079,1717371072819,-995.94,0.00031678,4]
[328419080,1717371072828,-626.65,0.00031678,4]
[328419081,1717371072837,-500.0,0.00031678,4]
[328419082,1717371072846,-844.41,0.00031678,4]
[328419083,1717371072855,-640.54,0.00031678,4]
[328419084,1717371072865,-1129.49,0.00031678,4]
[328419085,1717371072874,-1440.55,0.00031678,4]
[328419086,1717371072883,-3069.82,0.00031678,4]
[328419087,1717371072892,-500.0,0.00031678,4]
[328419088,1717371072903,-500.0,0.00031679,2]
[328419089,1717371072912,-500.0,0.00031679,4]
[328419090,1717371072923,-500.0,0.00031679,4]
[328419091,1717371072932,-500.0,0.00031679,4]
[328419092,1717371072941,-500.0,0.00031679,4]
[328419093,1717371072950,-881.16,0.00031679,4]
[328419094,1717371072960,-877.71,0.00031679,4]
[328419095,1717371072969,-500.0,0.00031679,4]
[328419096,1717371072978,-500.0,0.00031679,4]
[328419097,1717371072990,-500.0,0.00031679,4]
[328419098,1717371073005,-640.4,0.00031679,4]
[328419099,1717371073022,-640.75,0.00031679,4]
[328419100,1717371073035,-500.0,0.00031679,4]
[328419101,1717371073050,-500.0,0.00031679,4]
[328419102,1717371073064,-500.0,0.00031679,4]
[328419103,1717371073078,-500.0,0.00031679,4]
[328419104,1717371073094,-500.0,0.00031679,4]
[328419105,1717371073109,-500.0,0.00031679,4]
[328419106,1717371073122,-479.62773669,0.00031679,4]
[328419107,1717371073135,-584.71,0.00031679,4]
[328419108,1717371073150,-540.15,0.00031679,4]
[328419109,1717371073164,-500.0,0.00031679,4]
[328419110,1717371073176,-500.0,0.00031679,4]
[328419111,1717371073188,-500.0,0.00031679,4]
[328419112,1717371073201,-500.0,0.00031679,4]
[328419113,1717371073215,-500.0,0.00031679,4]
[328419114,1717371073229,-500.0,0.00031679,4]
[328419115,1717371073246,-725.51,0.00031679,4]
[328419116,1717371073258,-500.0,0.00031679,4]
[328419117,1717371073269,-693.57,0.00031679,4]
[328419118,1717371073283,-500.0,0.00031679,4]
[328419119,1717371073299,-500.0,0.00031679,4]
[328419120,1717371073314,-500.0,0.00031679,4]
[328419121,1717371073327,-715.0,0.00031679,4]
[328419122,1717371073343,-698.24,0.00031679,4]
[328419123,1717371073356,-558.89,0.00031679,4]
[328419124,1717371073370,-500.0,0.00031679,4]
[328419125,1717371073385,-727.94,0.00031679,4]
[328419126,1717371073401,-500.0,0.00031679,4]
[328419127,1717371073414,-500.0,0.00031679,4]
[328419128,1717371073428,-500.0,0.00031679,4]
[328419129,1717371073440,-500.0,0.00031679,4]
[328419130,1717371073453,-500.0,0.00031679,4]
[328419131,1717371073465,-898.02,0.00031679,4]
[328419132,1717371073478,-899.78,0.00031679,4]
[328419133,1717371073492,-500.0,0.00031679,4]
[328419134,1717371073505,-456.02837723,0.00031679,4]
[328419135,1717371073519,-150.0,0.00031679,4]
[328419136,1717371073533,-500.0,0.00031679,4]
[328419137,1717371073545,-500.0,0.00031679,4]
[328419138,1717371073560,-500.0,0.00031679,4]
[328419139,1717371073573,-526.8600117,0.00031679,4]
[328419140,1717371073586,-500.0,0.00031679,4]
[328419141,1717371073600,-500.0,0.00031679,4]
[328419142,1717371073614,-542.64,0.00031679,4]
[328419143,1717371073627,-518.75,0.00031679,4]
[328419144,1717371073640,-1142.42,0.00031679,4]
[328419145,1717371073655,-546.39910641,0.00031679,4]
[328419146,1717371073669,-500.0,0.00031679,4]
[328419147,1717371073683,-566.15,0.00031679,4]
[328419148,1717371073697,-1123.42,0.00031679,4]
[328419149,1717371073710,-1085.2,0.00031679,4]
[328419150,1717371073724,-1205.63,0.00031679,4]
[328419151,1717371073738,-500.0,0.00031679,4]
[328419152,1717371073751,-8789.4,0.00031679,4]
[328419153,1717371073763,-736.38,0.00031679,4]
[328419154,1717371073777,-797.08,0.00031679,4]
[328419155,1717371073790,-26146.55,0.00031679,4]
[328419156,1717371073803,-500.0,0.00031679,4]
[328419157,1717371073816,-553.37,0.00031679,4]
[328419158,1717371073829,-500.0,0.00031679,4]
[328419159,1717371073842,-859.62,0.00031679,4]
[328419160,1717371073853,-500.0,0.00031679,4]
[328419161,1717371073865,-500.0,0.00031679,4]
[328419162,1717371073876,-500.0,0.00031679,4]
[328419163,1717371073888,-500.0,0.00031679,4]
[328419164,1717371073899,-500.0,0.00031679,4]
[328419165,1717371073910,-799.72,0.00031679,4]
[328419166,1717371073922,-1125.65,0.00031679,4]
[328419167,1717371073933,-514.95,0.00031679,4]
[328419168,1717371073944,-500.0,0.00031679,4]
[328419169,1717371073955,-7152.07,0.00031679,4]
[328419170,1717371073967,-1737.83,0.00031679,4]
[328419171,1717371073978,-1275.64,0.00031679,4]
[328419172,1717371073989,-500.0,0.00031679,4]
[328419173,1717371074001,-944.32,0.00031679,4]
[328419174,1717371074013,-508.82,0.00031679,4]
[328419175,1717371074024,-1901.92,0.00031679,4]
[328419176,1717371074035,-500.0,0.00031679,4]
[328419177,1717371074046,-500.0,0.00031679,4]
[328419178,1717371074057,-2064.47,0.00031679,4]
[328419179,1717371074068,-500.0,0.00031679,4]
[328419180,1717371074080,-394.07509227,0.00031679,4]
[328419181,1717371074092,-500.0,0.00031679,4]
[328419182,1717371074103,-1245.2,0.00031679,4]
[328419183,1717371074114,-398.67165504,0.00031679,4]
[328419184,1717371074126,-1601.21,0.00031679,4]
[328419185,1717371074137,-620.28,0.00031679,4]
[328419186,1717371074148,-500.0,0.00031679,4]
[328419187,1717371074161,-1827.81,0.00031679,4]
[328419188,1717371074177,-500.0,0.00031679,4]
[328419189,1717371074188,-1608.46,0.00031679,4]
[328419190,1717371074199,-500.0,0.00031679,4]
[328419191,1717371074210,-500.0,0.00031679,4]
[328419192,1717371074221,-592.97,0.00031679,4]
[328419193,1717371074232,-500.0,0.00031679,4]
[328419194,1717371074242,-751.49,0.00031679,4]
[328419195,1717371074253,-500.0,0.00031679,4]
[328419196,1717371074264,-421.06800585,0.00031679,4]
[328419197,1717371074275,-866.13,0.00031679,4]
[328419198,1717371074286,-500.0,0.00031679,4]
[328419199,1717371074298,-500.0,0.00031679,4]
[328419200,1717371074309,-500.0,0.00031679,4]
[328419201,1717371074320,-1306.76,0.00031679,4]
[328419202,1717371074332,-500.0,0.00031679,4]
[328419203,1717371074343,-500.0,0.00031679,4]
[328419204,1717371074354,-500.0,0.00031679,4]
[328419205,1717371074365,-500.0,0.0003168,4]
[328419206,1717371074376,-500.0,0.0003168,4]
[328419207,1717371074387,-233.965853,0.0003168,4]
[328419208,1717371074402,-500.0,0.0003168,4]
[328419209,1717371074412,-285.957345,0.0003168,4]
[328419210,1717371074424,-500.0,0.0003168,4]
[328419211,1717371074434,-500.0,0.0003168,4]
[328419212,1717371074445,-613.42895559,0.0003168,4]
[328419213,1717371074458,-500.0,0.0003168,4]